[Event "Titled Tuesday Blitz December 7 2021"]
[White "Akbas, Umut Ata"]
[Black "Berezin, Viktor"]
[WhiteFideId "44572646"]
[BlackFideId "14107872"]
[WhiteElo "2757"]
[BlackElo "2433"]
[Result "1-0"]
[Round "01"]
[TimeControl "180+1"]
[Date "2021.12.07"]
[WhiteClock "0:00:46"]
[BlackClock "0:00:02"]

1. e4 {[%clk 0:02:59]}  d5 {[%clk 0:02:59]} 2. exd5 {[%clk 0:02:58]}  Nf6 {[%clk 0:02:59]} 3. Nf3 {[%clk 0:02:55]}  Nxd5 {[%clk 0:02:50]} 4. Bc4 {[%clk 0:02:55]}  Nb6 {[%clk 0:02:47]} 5. Bb3 {[%clk 0:02:55]}  e6 {[%clk 0:02:43]} 6. O-O {[%clk 0:02:53]}  g6 {[%clk 0:02:43]} 7. d4 {[%clk 0:02:52]}  Bg7 {[%clk 0:02:42]} 8. Re1 {[%clk 0:02:47]}  O-O {[%clk 0:02:42]} 9. c3 {[%clk 0:02:47]}  N8d7 {[%clk 0:02:39]} 10. Bg5 {[%clk 0:02:46]}  Nf6 {[%clk 0:02:35]} 11. Nbd2 {[%clk 0:02:41]}  Bd7 {[%clk 0:02:25]} 12. Ne5 {[%clk 0:02:39]}  Qc8 {[%clk 0:02:12]} 13. a4 {[%clk 0:02:31]}  a5 {[%clk 0:02:10]} 14. Qf3 {[%clk 0:02:30]}  Nfd5 {[%clk 0:01:56]} 15. Bh4 {[%clk 0:02:17]}  c5 {[%clk 0:01:56]} 16. dxc5 {[%clk 0:02:10]}  Qxc5 {[%clk 0:01:52]} 17. Nxd7 {[%clk 0:02:08]}  Nxd7 {[%clk 0:01:51]} 18. Ne4 {[%clk 0:02:08]}  Qb6 {[%clk 0:01:46]} 19. c4 {[%clk 0:01:55]}  Ne5 {[%clk 0:01:28]} 20. Qg3 {[%clk 0:01:40]}  f5 {[%clk 0:00:35]} 21. cxd5 {[%clk 0:01:25]}  fxe4 {[%clk 0:00:28]} 22. dxe6 {[%clk 0:01:10]}  Kh8 {[%clk 0:00:25]} 23. Rxe4 {[%clk 0:01:09]}  Rac8 {[%clk 0:00:14]} 24. Rxe5 {[%clk 0:00:55]}  Qb4 {[%clk 0:00:05]} 25. Ree1 {[%clk 0:00:48]}  Rfe8 {[%clk 0:00:02]} 26. e7 {[%clk 0:00:47]}  Rc6 {[%clk 0:00:02]} 27. Bf7 {[%clk 0:00:46]} 1-0


[Site "https://www.chess.com"]

[Event "Titled Tuesday Blitz December 7 2021"]
[White "Arakhamia-Grant, Ketevan"]
[Black "Ibrahimli, Murad"]
[WhiteFideId "13600168"]
[BlackFideId "13410229"]
[WhiteElo "2458"]
[BlackElo "2827"]
[Result "0-1"]
[Round "01"]
[TimeControl "180+1"]
[Date "2021.12.07"]
[WhiteClock "0:00:02"]
[BlackClock "0:00:31"]

1. e4 {[%clk 0:02:58]}  c5 {[%clk 0:02:58]} 2. Nf3 {[%clk 0:02:56]}  d6 {[%clk 0:02:56]} 3. Bb5+ {[%clk 0:02:56]}  Bd7 {[%clk 0:02:52]} 4. Bxd7+ {[%clk 0:02:55]}  Qxd7 {[%clk 0:02:53]} 5. O-O {[%clk 0:02:56]}  Nc6 {[%clk 0:02:53]} 6. c3 {[%clk 0:02:55]}  Nf6 {[%clk 0:02:52]} 7. Re1 {[%clk 0:02:55]}  e6 {[%clk 0:02:52]} 8. d4 {[%clk 0:02:55]}  cxd4 {[%clk 0:02:52]} 9. cxd4 {[%clk 0:02:56]}  d5 {[%clk 0:02:53]} 10. e5 {[%clk 0:02:56]}  Ng8 {[%clk 0:02:52]} 11. Nc3 {[%clk 0:02:52]}  Bb4 {[%clk 0:02:51]} 12. Bd2 {[%clk 0:02:48]}  Nge7 {[%clk 0:02:49]} 13. Nb5 {[%clk 0:02:46]}  a6 {[%clk 0:02:40]} 14. Bxb4 {[%clk 0:02:42]}  axb5 {[%clk 0:02:40]} 15. Bxe7 {[%clk 0:02:39]}  Qxe7 {[%clk 0:02:35]} 16. Qb3 {[%clk 0:02:38]}  b4 {[%clk 0:02:33]} 17. Rec1 {[%clk 0:02:31]}  O-O {[%clk 0:02:31]} 18. h4 {[%clk 0:02:25]}  h6 {[%clk 0:02:31]} 19. Qe3 {[%clk 0:02:21]}  Ra5 {[%clk 0:02:27]} 20. Rc2 {[%clk 0:02:05]}  Rfa8 {[%clk 0:02:26]} 21. b3 {[%clk 0:02:05]}  Qf8 {[%clk 0:02:12]} 22. g3 {[%clk 0:02:04]}  Kh8 {[%clk 0:02:11]} 23. Kg2 {[%clk 0:02:04]}  Qg8 {[%clk 0:02:11]} 24. Ng5 {[%clk 0:01:31]}  Qe8 {[%clk 0:01:18]} 25. Qd3 {[%clk 0:01:18]}  Qg8 {[%clk 0:01:12]} 26. Rh1 {[%clk 0:00:57]}  Rxa2 {[%clk 0:00:49]} 27. Rxa2 {[%clk 0:00:57]}  Rxa2 {[%clk 0:00:50]} 28. Qf3 {[%clk 0:00:55]}  Nd8 {[%clk 0:00:40]} 29. Rc1 {[%clk 0:00:54]}  Ra8 {[%clk 0:00:40]} 30. Rc7 {[%clk 0:00:35]}  hxg5 {[%clk 0:00:39]} 31. hxg5 {[%clk 0:00:36]}  Qh7 {[%clk 0:00:39]} 32. Re7 {[%clk 0:00:32]}  Qe4 {[%clk 0:00:33]} 33. Re8+ {[%clk 0:00:31]}  Kh7 {[%clk 0:00:33]} 34. Qxe4+ {[%clk 0:00:18]}  dxe4 {[%clk 0:00:33]} 35. Kh3 {[%clk 0:00:18]}  Kg6 {[%clk 0:00:33]} 36. Kg4 {[%clk 0:00:18]}  Rb8 {[%clk 0:00:33]} 37. Kf4 {[%clk 0:00:16]}  Nc6 {[%clk 0:00:32]} 38. Rxb8 {[%clk 0:00:13]}  Nxb8 {[%clk 0:00:33]} 39. Kxe4 {[%clk 0:00:13]}  Kxg5 {[%clk 0:00:33]} 40. d5 {[%clk 0:00:07]}  exd5+ {[%clk 0:00:33]} 41. Kxd5 {[%clk 0:00:07]}  Kg4 {[%clk 0:00:34]} 42. Kd6 {[%clk 0:00:04]}  Kf3 {[%clk 0:00:32]} 43. Ke7 {[%clk 0:00:04]}  Nc6+ {[%clk 0:00:32]} 44. Kxf7 {[%clk 0:00:04]}  Nxe5+ {[%clk 0:00:32]} 45. Kxg7 {[%clk 0:00:04]}  Kxf2 {[%clk 0:00:33]} 46. Kf6 {[%clk 0:00:03]}  Ng4+ {[%clk 0:00:30]} 47. Ke6 {[%clk 0:00:02]}  Kxg3 {[%clk 0:00:31]} 0-1


[Site "https://www.chess.com"]

[Event "Titled Tuesday Blitz December 7 2021"]
[White "Bach, Ngoc Thuy Duong"]
[Black "Mikhailovsky, Vladimir"]
[WhiteFideId "12408956"]
[BlackFideId "34105414"]
[WhiteElo "2448"]
[BlackElo "2785"]
[Result "0-1"]
[Round "01"]
[TimeControl "180+1"]
[Date "2021.12.07"]
[WhiteClock "0:00:06"]
[BlackClock "0:00:20"]

1. d4 {[%clk 0:03:00]}  d6 {[%clk 0:02:58]} 2. c4 {[%clk 0:02:59]}  e5 {[%clk 0:02:57]} 3. Nf3 {[%clk 0:02:57]}  e4 {[%clk 0:02:57]} 4. Ng5 {[%clk 0:02:57]}  f5 {[%clk 0:02:56]} 5. g3 {[%clk 0:02:55]}  Nf6 {[%clk 0:02:54]} 6. Bg2 {[%clk 0:02:55]}  h6 {[%clk 0:02:45]} 7. Nh3 {[%clk 0:02:54]}  c6 {[%clk 0:02:46]} 8. O-O {[%clk 0:02:51]}  d5 {[%clk 0:02:45]} 9. f3 {[%clk 0:02:49]}  Bd6 {[%clk 0:02:40]} 10. c5 {[%clk 0:02:46]}  Bc7 {[%clk 0:02:39]} 11. Nc3 {[%clk 0:02:46]}  O-O {[%clk 0:02:39]} 12. Be3 {[%clk 0:01:53]}  Qe8 {[%clk 0:02:35]} 13. Qd2 {[%clk 0:01:52]}  Nbd7 {[%clk 0:01:45]} 14. b4 {[%clk 0:01:39]}  Rf7 {[%clk 0:01:43]} 15. a4 {[%clk 0:01:30]}  Nf8 {[%clk 0:01:42]} 16. Rfe1 {[%clk 0:01:14]}  g5 {[%clk 0:01:35]} 17. Rf1 {[%clk 0:00:48]}  Ng6 {[%clk 0:01:33]} 18. f4 {[%clk 0:00:37]}  g4 {[%clk 0:01:09]} 19. Nf2 {[%clk 0:00:36]}  h5 {[%clk 0:01:09]} 20. Rfb1 {[%clk 0:00:36]}  h4 {[%clk 0:01:07]} 21. Nfd1 {[%clk 0:00:28]}  Nh5 {[%clk 0:01:05]} 22. Bf2 {[%clk 0:00:25]}  Bd7 {[%clk 0:00:56]} 23. e3 {[%clk 0:00:24]}  Rh7 {[%clk 0:00:40]} 24. Qe2 {[%clk 0:00:14]}  Kg7 {[%clk 0:00:36]} 25. b5 {[%clk 0:00:13]}  Qf7 {[%clk 0:00:31]} 26. a5 {[%clk 0:00:09]}  a6 {[%clk 0:00:24]} 27. bxc6 {[%clk 0:00:06]}  Bxc6 {[%clk 0:00:20]} 0-1


[Site "https://www.chess.com"]

[Event "Titled Tuesday Blitz December 7 2021"]
[White "Bacrot, Etienne"]
[Black "Brunner, Nicolas"]
[WhiteFideId "605506"]
[BlackFideId "620246"]
[WhiteElo "2795"]
[BlackElo "2453"]
[Result "1-0"]
[Round "01"]
[TimeControl "180+1"]
[Date "2021.12.07"]
[WhiteClock "0:01:21"]
[BlackClock "0:00:08"]

1. e4 {[%clk 0:03:00]}  e5 {[%clk 0:03:00]} 2. Nf3 {[%clk 0:03:00]}  Nc6 {[%clk 0:03:00]} 3. Bb5 {[%clk 0:03:00]}  a6 {[%clk 0:03:00]} 4. Ba4 {[%clk 0:03:00]}  Nf6 {[%clk 0:03:00]} 5. O-O {[%clk 0:03:00]}  Be7 {[%clk 0:03:00]} 6. Re1 {[%clk 0:02:59]}  b5 {[%clk 0:03:00]} 7. Bb3 {[%clk 0:02:59]}  d6 {[%clk 0:03:01]} 8. h3 {[%clk 0:02:58]}  O-O {[%clk 0:03:01]} 9. c3 {[%clk 0:02:58]}  Nb8 {[%clk 0:03:01]} 10. d4 {[%clk 0:02:58]}  Nbd7 {[%clk 0:03:01]} 11. c4 {[%clk 0:02:58]}  c6 {[%clk 0:02:58]} 12. Nc3 {[%clk 0:02:53]}  Bb7 {[%clk 0:02:55]} 13. a3 {[%clk 0:02:52]}  Re8 {[%clk 0:02:53]} 14. Be3 {[%clk 0:02:26]}  h6 {[%clk 0:02:46]} 15. Qc2 {[%clk 0:02:17]}  Rc8 {[%clk 0:02:25]} 16. Rad1 {[%clk 0:02:16]}  Qc7 {[%clk 0:02:24]} 17. Nh4 {[%clk 0:02:03]}  Bf8 {[%clk 0:02:16]} 18. Nf5 {[%clk 0:02:02]}  exd4 {[%clk 0:01:56]} 19. Bxd4 {[%clk 0:01:58]}  Ne5 {[%clk 0:01:16]} 20. f4 {[%clk 0:01:57]}  Nxc4 {[%clk 0:01:06]} 21. Nxh6+ {[%clk 0:01:47]}  Kh8 {[%clk 0:01:00]} 22. Qf2 {[%clk 0:01:36]}  gxh6 {[%clk 0:00:27]} 23. Bxf6+ {[%clk 0:01:34]}  Kh7 {[%clk 0:00:28]} 24. Kh1 {[%clk 0:01:24]}  c5 {[%clk 0:00:21]} 25. Qh4 {[%clk 0:01:23]}  Nxb2 {[%clk 0:00:16]} 26. e5 {[%clk 0:01:21]}  c4 {[%clk 0:00:09]} 27. Bc2+ {[%clk 0:01:21]}  Nd3 {[%clk 0:00:09]} 28. Rxd3 {[%clk 0:01:21]}  cxd3 {[%clk 0:00:08]} 29. Bxd3+ {[%clk 0:01:21]} 1-0


[Site "https://www.chess.com"]

[Event "Titled Tuesday Blitz December 7 2021"]
[White "Bayo Milagro, Alvaro"]
[Black "Makarian, Rudik"]
[WhiteFideId "22275240"]
[BlackFideId "44105681"]
[WhiteElo "2463"]
[BlackElo "2850"]
[Result "1/2-1/2"]
[Round "01"]
[TimeControl "180+1"]
[Date "2021.12.07"]
[WhiteClock "0:00:13"]
[BlackClock "0:00:07"]

1. c4 {[%clk 0:03:00]}  e6 {[%clk 0:02:33]} 2. Nf3 {[%clk 0:02:59]}  c5 {[%clk 0:02:33]} 3. Nc3 {[%clk 0:02:57]}  d5 {[%clk 0:02:22]} 4. cxd5 {[%clk 0:02:57]}  exd5 {[%clk 0:02:20]} 5. d4 {[%clk 0:02:57]}  Nc6 {[%clk 0:02:16]} 6. g3 {[%clk 0:02:57]}  Nf6 {[%clk 0:02:15]} 7. Bg2 {[%clk 0:02:57]}  cxd4 {[%clk 0:02:15]} 8. Nxd4 {[%clk 0:02:57]}  Bc5 {[%clk 0:02:15]} 9. Nxc6 {[%clk 0:02:53]}  bxc6 {[%clk 0:02:16]} 10. O-O {[%clk 0:02:53]}  O-O {[%clk 0:02:10]} 11. Qc2 {[%clk 0:02:53]}  Be7 {[%clk 0:02:06]} 12. Na4 {[%clk 0:02:51]}  Ba6 {[%clk 0:02:02]} 13. Be3 {[%clk 0:02:49]}  Ng4 {[%clk 0:01:49]} 14. Bc5 {[%clk 0:02:46]}  Re8 {[%clk 0:01:44]} 15. Rfe1 {[%clk 0:02:40]}  Bf6 {[%clk 0:01:41]} 16. Rad1 {[%clk 0:02:30]}  Qc7 {[%clk 0:01:20]} 17. Bd4 {[%clk 0:02:25]}  Rac8 {[%clk 0:01:13]} 18. Nc5 {[%clk 0:02:08]}  Bb7 {[%clk 0:01:02]} 19. e3 {[%clk 0:01:38]}  Rb8 {[%clk 0:00:59]} 20. h3 {[%clk 0:01:35]}  Ne5 {[%clk 0:00:52]} 21. f4 {[%clk 0:01:34]}  Nd7 {[%clk 0:00:52]} 22. Nxd7 {[%clk 0:01:34]}  Bxd4 {[%clk 0:00:47]} 23. Nxb8 {[%clk 0:01:34]}  Bxe3+ {[%clk 0:00:46]} 24. Kh2 {[%clk 0:01:29]}  Qxb8 {[%clk 0:00:45]} 25. Qb3 {[%clk 0:01:24]}  d4 {[%clk 0:00:42]} 26. Qc4 {[%clk 0:01:23]}  c5 {[%clk 0:00:37]} 27. Re2 {[%clk 0:01:08]}  g6 {[%clk 0:00:34]} 28. Qxc5 {[%clk 0:01:04]}  Ba6 {[%clk 0:00:34]} 29. Rde1 {[%clk 0:00:50]}  Bxe2 {[%clk 0:00:34]} 30. Rxe2 {[%clk 0:00:51]}  Rc8 {[%clk 0:00:28]} 31. Qd5 {[%clk 0:00:46]}  Rc1 {[%clk 0:00:28]} 32. h4 {[%clk 0:00:42]}  Qc7 {[%clk 0:00:23]} 33. h5 {[%clk 0:00:39]}  Kg7 {[%clk 0:00:23]} 34. Qg5 {[%clk 0:00:36]}  h6 {[%clk 0:00:22]} 35. Qd5 {[%clk 0:00:34]}  Qe7 {[%clk 0:00:20]} 36. hxg6 {[%clk 0:00:33]}  fxg6 {[%clk 0:00:16]} 37. Bf3 {[%clk 0:00:30]}  Qc7 {[%clk 0:00:13]} 38. f5 {[%clk 0:00:29]}  Rc2 {[%clk 0:00:11]} 39. Qe6 {[%clk 0:00:25]}  gxf5 {[%clk 0:00:09]} 40. Qxf5 {[%clk 0:00:24]}  Rxe2+ {[%clk 0:00:08]} 41. Bxe2 {[%clk 0:00:25]}  Qc1 {[%clk 0:00:08]} 42. Bd3 {[%clk 0:00:21]}  Qxb2+ {[%clk 0:00:08]} 43. Kh3 {[%clk 0:00:20]}  Qb6 {[%clk 0:00:08]} 44. Qh7+ {[%clk 0:00:20]}  Kf8 {[%clk 0:00:06]} 45. Qh8+ {[%clk 0:00:20]}  Ke7 {[%clk 0:00:06]} 46. Qg7+ {[%clk 0:00:20]}  Kd6 {[%clk 0:00:05]} 47. Qf6+ {[%clk 0:00:19]}  Kc5 {[%clk 0:00:06]} 48. Qf8+ {[%clk 0:00:16]}  Kd5 {[%clk 0:00:04]} 49. Qf5+ {[%clk 0:00:13]}  Kc6 {[%clk 0:00:04]} 50. Be4+ {[%clk 0:00:13]}  Kd6 {[%clk 0:00:03]} 51. Qf6+ {[%clk 0:00:12]}  Kc5 {[%clk 0:00:03]} 52. Qf8+ {[%clk 0:00:12]}  Qd6 {[%clk 0:00:03]} 53. Qxd6+ {[%clk 0:00:10]}  Kxd6 {[%clk 0:00:04]} 54. Bd3 {[%clk 0:00:10]}  Kc5 {[%clk 0:00:05]} 55. Kg4 {[%clk 0:00:10]}  Kb4 {[%clk 0:00:05]} 56. Kf3 {[%clk 0:00:11]}  Kc3 {[%clk 0:00:03]} 57. Ke4 {[%clk 0:00:11]}  a5 {[%clk 0:00:03]} 58. a4 {[%clk 0:00:10]}  h5 {[%clk 0:00:02]} 59. Be2 {[%clk 0:00:09]}  Bf2 {[%clk 0:00:03]} 60. Bxh5 {[%clk 0:00:08]}  Bxg3 {[%clk 0:00:03]} 61. Be2 {[%clk 0:00:08]}  Bd6 {[%clk 0:00:03]} 62. Bb5 {[%clk 0:00:08]}  Bc5 {[%clk 0:00:03]} 63. Bd3 {[%clk 0:00:08]}  Kb4 {[%clk 0:00:04]} 64. Bb5 {[%clk 0:00:08]}  Kb3 {[%clk 0:00:05]} 65. Kd3 {[%clk 0:00:08]}  Bb6 {[%clk 0:00:05]} 66. Bc6 {[%clk 0:00:08]}  Kb4 {[%clk 0:00:06]} 67. Bd7 {[%clk 0:00:09]}  Kc5 {[%clk 0:00:07]} 68. Be8 {[%clk 0:00:09]}  Kb4 {[%clk 0:00:07]} 69. Bb5 {[%clk 0:00:10]}  Kc5 {[%clk 0:00:08]} 70. Be8 {[%clk 0:00:10]}  Kd6 {[%clk 0:00:07]} 71. Bb5 {[%clk 0:00:11]}  Kc7 {[%clk 0:00:08]} 72. Be8 {[%clk 0:00:11]}  Kd8 {[%clk 0:00:08]} 73. Bb5 {[%clk 0:00:12]}  Kc7 {[%clk 0:00:09]} 74. Bc4 {[%clk 0:00:12]}  Kd6 {[%clk 0:00:10]} 75. Bb5 {[%clk 0:00:13]}  Kc5 {[%clk 0:00:10]} 76. Bc4 {[%clk 0:00:13]}  Kb4 {[%clk 0:00:07]} 1/2-1/2


[Site "https://www.chess.com"]

[Event "Titled Tuesday Blitz December 7 2021"]
[White "Bazarov, Konstantin"]
[Black "Sarana, Alexey"]
[WhiteFideId "4137000"]
[BlackFideId "24133795"]
[WhiteElo "2503"]
[BlackElo "3025"]
[Result "0-1"]
[Round "01"]
[TimeControl "180+1"]
[Date "2021.12.07"]
[WhiteClock "0:01:59"]
[BlackClock "0:02:41"]

1. d4 {[%clk 0:02:44]}  Nf6 {[%clk 0:03:00]} 2. c4 {[%clk 0:02:35]}  e6 {[%clk 0:03:00]} 3. Nf3 {[%clk 0:02:34]}  d5 {[%clk 0:03:01]} 4. Nc3 {[%clk 0:02:33]}  Bb4 {[%clk 0:02:56]} 5. Qa4+ {[%clk 0:02:31]}  Nc6 {[%clk 0:02:57]} 6. Bg5 {[%clk 0:02:31]}  dxc4 {[%clk 0:02:54]} 7. e3 {[%clk 0:02:30]}  Qd5 {[%clk 0:02:54]} 8. Ne5 {[%clk 0:02:20]}  b5 {[%clk 0:02:50]} 9. Qc2 {[%clk 0:02:18]}  Nxe5 {[%clk 0:02:49]} 10. dxe5 {[%clk 0:02:18]}  Qxe5 {[%clk 0:02:50]} 11. Bf4 {[%clk 0:02:18]}  Qf5 {[%clk 0:02:43]} 12. Qc1 {[%clk 0:02:16]}  Nd5 {[%clk 0:02:42]} 13. Bg3 {[%clk 0:02:10]}  Qf6 {[%clk 0:02:42]} 14. Kd2 {[%clk 0:02:07]}  O-O {[%clk 0:02:40]} 15. e4 {[%clk 0:02:03]}  Nxc3 {[%clk 0:02:40]} 16. bxc3 {[%clk 0:02:02]}  Rd8+ {[%clk 0:02:41]} 17. Ke2 {[%clk 0:01:59]}  Bxc3 {[%clk 0:02:41]} 18. Rb1 {[%clk 0:01:59]}  Rd2+ {[%clk 0:02:41]} 0-1


[Site "https://www.chess.com"]

[Event "Titled Tuesday Blitz December 7 2021"]
[White "Belyakov, Bogdan"]
[Black "Rodchenkov, Vitaly"]
[WhiteFideId "24104795"]
[BlackFideId "4152964"]
[WhiteElo "2722"]
[BlackElo "2409"]
[Result "1-0"]
[Round "01"]
[TimeControl "180+1"]
[Date "2021.12.07"]
[WhiteClock "0:00:34"]
[BlackClock "0:00:58"]

1. e4 {[%clk 0:02:57]}  c5 {[%clk 0:02:59]} 2. c3 {[%clk 0:02:57]}  d5 {[%clk 0:02:58]} 3. exd5 {[%clk 0:02:57]}  Qxd5 {[%clk 0:02:59]} 4. d4 {[%clk 0:02:58]}  Nf6 {[%clk 0:02:59]} 5. Nf3 {[%clk 0:02:58]}  Nc6 {[%clk 0:02:59]} 6. Be2 {[%clk 0:02:53]}  cxd4 {[%clk 0:02:58]} 7. cxd4 {[%clk 0:02:52]}  Bg4 {[%clk 0:02:58]} 8. Nc3 {[%clk 0:02:52]}  Qa5 {[%clk 0:02:57]} 9. h3 {[%clk 0:02:32]}  Bh5 {[%clk 0:02:56]} 10. O-O {[%clk 0:02:18]}  e6 {[%clk 0:02:56]} 11. a3 {[%clk 0:02:14]}  Be7 {[%clk 0:02:55]} 12. Qb3 {[%clk 0:02:14]}  Qb6 {[%clk 0:02:54]} 13. Qxb6 {[%clk 0:02:14]}  axb6 {[%clk 0:02:54]} 14. Be3 {[%clk 0:02:12]}  O-O {[%clk 0:02:54]} 15. Rac1 {[%clk 0:02:10]}  Rfd8 {[%clk 0:02:53]} 16. Nb5 {[%clk 0:02:05]}  Nd5 {[%clk 0:02:52]} 17. Bd2 {[%clk 0:01:50]}  h6 {[%clk 0:02:50]} 18. g4 {[%clk 0:01:49]}  Bg6 {[%clk 0:02:49]} 19. Rfd1 {[%clk 0:01:46]}  Rd7 {[%clk 0:02:48]} 20. Ne5 {[%clk 0:01:45]}  Nxe5 {[%clk 0:02:47]} 21. dxe5 {[%clk 0:01:46]}  Rad8 {[%clk 0:02:45]} 22. Kg2 {[%clk 0:01:30]}  f6 {[%clk 0:02:34]} 23. exf6 {[%clk 0:01:27]}  Bxf6 {[%clk 0:02:33]} 24. Nc3 {[%clk 0:01:23]}  Bxc3 {[%clk 0:02:14]} 25. bxc3 {[%clk 0:01:23]}  e5 {[%clk 0:02:10]} 26. Kg3 {[%clk 0:01:22]}  Bf7 {[%clk 0:02:08]} 27. c4 {[%clk 0:01:22]}  Nf4 {[%clk 0:02:04]} 28. Bxf4 {[%clk 0:01:18]}  exf4+ {[%clk 0:02:04]} 29. Kxf4 {[%clk 0:01:18]}  Rxd1 {[%clk 0:02:05]} 30. Bxd1 {[%clk 0:01:18]}  Rd2 {[%clk 0:02:01]} 31. f3 {[%clk 0:01:10]}  g5+ {[%clk 0:01:58]} 32. Ke5 {[%clk 0:01:08]}  Kg7 {[%clk 0:01:56]} 33. Bc2 {[%clk 0:00:55]}  Bxc4 {[%clk 0:01:44]} 34. Be4 {[%clk 0:00:55]}  b5 {[%clk 0:01:44]} 35. Bxb7 {[%clk 0:00:52]}  Ra2 {[%clk 0:01:41]} 36. Rc3 {[%clk 0:00:51]}  Rh2 {[%clk 0:01:37]} 37. a4 {[%clk 0:00:47]}  Rxh3 {[%clk 0:01:35]} 38. Bc6 {[%clk 0:00:37]}  Rh1 {[%clk 0:01:09]} 39. axb5 {[%clk 0:00:37]}  Bf7 {[%clk 0:01:03]} 40. b6 {[%clk 0:00:35]}  Rb1 {[%clk 0:01:02]} 41. b7 {[%clk 0:00:35]}  Kf8 {[%clk 0:00:59]} 42. Be4 {[%clk 0:00:35]}  Ke7 {[%clk 0:00:58]} 43. Bxb1 {[%clk 0:00:34]} 1-0


[Site "https://www.chess.com"]

[Event "Titled Tuesday Blitz December 7 2021"]
[White "Bloomer, Josh"]
[Black "Madaminov, Mukhiddin"]
[WhiteFideId "2020416"]
[BlackFideId "14210703"]
[WhiteElo "2410"]
[BlackElo "2724"]
[Result "0-1"]
[Round "01"]
[TimeControl "180+1"]
[Date "2021.12.07"]
[WhiteClock "0:00:55"]
[BlackClock "0:01:24"]

1. e4 {[%clk 0:02:59]}  e6 {[%clk 0:02:59]} 2. d4 {[%clk 0:02:59]}  d5 {[%clk 0:02:59]} 3. Bd3 {[%clk 0:02:59]}  dxe4 {[%clk 0:02:59]} 4. Bxe4 {[%clk 0:03:00]}  Nf6 {[%clk 0:02:59]} 5. Bf3 {[%clk 0:03:01]}  Nbd7 {[%clk 0:02:55]} 6. Ne2 {[%clk 0:02:48]}  c5 {[%clk 0:02:55]} 7. O-O {[%clk 0:02:37]}  a6 {[%clk 0:02:53]} 8. Nbc3 {[%clk 0:02:36]}  Be7 {[%clk 0:02:47]} 9. Be3 {[%clk 0:02:30]}  cxd4 {[%clk 0:02:42]} 10. Nxd4 {[%clk 0:02:26]}  O-O {[%clk 0:02:41]} 11. Qe2 {[%clk 0:02:17]}  Ne5 {[%clk 0:02:34]} 12. Rfd1 {[%clk 0:02:12]}  Nxf3+ {[%clk 0:02:33]} 13. Qxf3 {[%clk 0:02:11]}  Qc7 {[%clk 0:02:34]} 14. Bf4 {[%clk 0:02:03]}  e5 {[%clk 0:02:30]} 15. Bg3 {[%clk 0:02:04]}  Bg4 {[%clk 0:02:04]} 16. Nd5 {[%clk 0:01:31]}  Bxf3 {[%clk 0:02:03]} 17. Nxc7 {[%clk 0:01:31]}  Bxd1 {[%clk 0:01:56]} 18. Nf5 {[%clk 0:01:29]}  Rad8 {[%clk 0:01:35]} 19. Nxe7+ {[%clk 0:01:24]}  Kh8 {[%clk 0:01:34]} 20. Bxe5 {[%clk 0:01:13]}  Bxc2 {[%clk 0:01:34]} 21. Bxf6 {[%clk 0:01:10]}  gxf6 {[%clk 0:01:34]} 22. Ned5 {[%clk 0:01:08]}  Rd7 {[%clk 0:01:30]} 23. Rc1 {[%clk 0:01:06]}  Rc8 {[%clk 0:01:23]} 24. Nb6 {[%clk 0:00:56]}  Rcxc7 {[%clk 0:01:23]} 25. Nxd7 {[%clk 0:00:55]}  Rxd7 {[%clk 0:01:24]} 0-1


[Site "https://www.chess.com"]

[Event "Titled Tuesday Blitz December 7 2021"]
[White "Borsuk, Konstantin"]
[Black "Kalajzic, Ivan"]
[WhiteFideId "14113406"]
[BlackFideId "14506378"]
[WhiteElo "2406"]
[BlackElo "2163"]
[Result "0-1"]
[Round "01"]
[TimeControl "180+1"]
[Date "2021.12.07"]
[WhiteClock "0:02:35"]
[BlackClock "0:01:53"]

1. c4 {[%clk 0:02:58]}  Nc6 {[%clk 0:02:59]} 2. g3 {[%clk 0:02:56]}  e5 {[%clk 0:02:59]} 3. Bg2 {[%clk 0:02:56]}  Bc5 {[%clk 0:02:59]} 4. Nc3 {[%clk 0:02:56]}  d6 {[%clk 0:02:59]} 5. e3 {[%clk 0:02:55]}  Bf5 {[%clk 0:02:58]} 6. Nge2 {[%clk 0:02:51]}  Nb4 {[%clk 0:02:57]} 7. e4 {[%clk 0:02:50]}  Nd3+ {[%clk 0:02:56]} 8. Kf1 {[%clk 0:02:49]}  Nxf2 {[%clk 0:02:56]} 9. Qa4+ {[%clk 0:02:49]}  Bd7 {[%clk 0:02:56]} 10. Qb3 {[%clk 0:02:47]}  Nxh1 {[%clk 0:02:42]} 11. Bxh1 {[%clk 0:02:47]}  Qf6+ {[%clk 0:02:37]} 12. Nf4 {[%clk 0:02:43]}  exf4 {[%clk 0:02:34]} 13. Qxb7 {[%clk 0:02:41]}  fxg3+ {[%clk 0:02:32]} 14. Ke1 {[%clk 0:02:42]}  Rc8 {[%clk 0:02:20]} 15. e5 {[%clk 0:02:42]}  Qf2+ {[%clk 0:02:16]} 16. Kd1 {[%clk 0:02:42]}  Bf5 {[%clk 0:02:08]} 17. Bc6+ {[%clk 0:02:35]}  Kf8 {[%clk 0:02:06]} 18. Ne4 {[%clk 0:02:35]}  g2 {[%clk 0:01:53]} 0-1


[Site "https://www.chess.com"]